Workbook

Sheet NET_COST
C3: Customer Name
C4: Mrs A Britton | D4: R16949
C5: Invoice address
C6: 156 Richmond Road, Kingston, KT2 5HD
C7: Site Address
C9: Home No. | D9: Fax No. | E9: email:
C10: 020 8549 0926
C11: Work No. | D11: Mobile No.
C14: Areas to be done
C15: 2 bedroom, 2 landings & 1 flight stairs & storage cupboard
C17: QUALITY & COLOUR | D17: QUANTITY | E17: UNIT PRICE | F17: TOTAL | G17: BREAKDOWN
C19: Queenstown Nova | D19: 71 | E19: 39.5 | F19: =D19*E19 -> 2804.5
C20: Quality & Colour | D20: 0 | E20: 0 | F20: =D20*E20 -> 0 | G20: CARPETS
C21: Quality & Colour | D21: 0 | E21: 0 | F21: =D21*E21 -> 0 | G21: =SUM(F19:F22) -> 2804.5
C22: Quality & Colour | D22: 0 | E22: 0 | F22: =D22*E22 -> 0
C24: ANCILLARIES
C25: 42oz FELT U/LAY | D25: 68 | E25: 5.25 | F25: =D25*E25 -> 357
C26: 8mm PU FOAM U/LAY | E26: 6.25 | F26: =D26*E26 -> 0
C27: 10mm PU FOAM U/LAY | E27: 7.5 | F27: =D27*E27 -> 0
C28: LUXIFELT COMBINATION U/LAY | E28: 7.95 | F28: =D28*E28 -> 0
C29: 3 DIMENSIONS CRUMB RUBBER U/LAY (DURAFIT) | E29: 7.95 | F29: 0
C30: LOW TOG UNDERLAY (0.8 tog) | E30: 8.25 | F30: 0
C31: PAPERFELT INTERLINER | D31: 60 | E31: 0.7 | F31: 42
C32: WOOD SMOOTHEDGE (5' length) | D32: 63 | E32: 1.75 | F32: 110.25
C33: CONCRETE SMOOTHEDGE (5' length) | E33: 1.75 | F33: 0
C34: NO PIN SMOOTHEDGE (5' length) | E34: 1.75 | F34: 0
C35: ALI D/NAP (3' length) | D35: 8 | E35: 7.5 | F35: 60
C36: ALI S/NAP (3' length) | E36: 7.5 | F36: 0
C37: ALI ZIG ZAG (3' length) | E37: 7.5 | F37: 0
C38: ALI SQUARE EDGE (3' length) | E38: 7.5 | F38: 0
C39: ANOD D/NAP (3' length) | E39: 7.5 | F39: 0
C40: ANOD S/NAP (3' length) | E40: 7.5 | F40: 0
C41: ANOD ZIG ZAG (3' length) | E41: 7.5 | F41: 0 | G41: ANCILLARIES
C42: POLISHED ALI D/NAP (900mm length) | E42: 25 | F42: 0 | G42: =SUM(F25:F62) -> 580.25
C43: POLISHED ALI S/NAP (900mm length) | E43: 25 | F43: 0
C44: POLISHED ALI T/EDGE (900mm length) | E44: 25 | F44: 0
C45: SATIN ALI D/NAP (900mm length) | E45: 25 | F45: 0
C46: SATIN ALI S/NAP (900mm length) | E46: 25 | F46: 0
C47: SATIN ALI T/EDGE (900mm length) | E47: 25 | F47: 0
C48: BRASS D/NAP - CAT FELINE 2 (3' length) | E48: 30 | F48: 0
C49: BRASS S/NAP (3' length) | E49: 20 | F49: 0
C50: BRASS TIBER / TILE EDGE (3' length) | E50: 30 | F50: 0
C51: BRASS COVERPLATE (3' length) | E51: 20 | F51: 0
C52: CHROME DOUBLE (3' length) | E52: 45 | F52: 0
C53: CHROME SINGLE (3' length) | E53: 30 | F53: 0
C54: CHROME TIMBER / TILE EDGE (3' length) | E54: 45 | F54: 0
C55: NI-SHEEN DOUBLE (3' length) | E55: 45 | F55: 0
C56: NI-SHEEN SINGLE (3' length) | E56: 30 | F56: 0
C57: NI-SHEEN TIMBER / TILE EDGE(3' length) | E57: 45 | F57: 0
C58: GRIPPER ADHESIVE (Fast Set) | D58: =ROUNDUP((D34/6),0) -> 0 | E58: 8.95 | F58: 0
C59: SPRAY ADHESIVE (Can) | D59: 2 | E59: 5.5 | F59: 11
C60: COIR MATTING - NATURAL | E60: 35 | F60: 0
C61: MISC (Enter cost x 1.75) | E61: 0 | F61: =D61*E61 -> 0
C62: MISC (Enter cost x 1.75) | E62: 0 | F62: =D62*E62 -> 0
C63: FITTING
A64: =D64*2 -> 142 | C64: FITTING CARPET STANDARD RATE | D64: =SUM(D19:D22) -> 71 | E64: 4.5 | F64: =D64*E64 -> 319.5
A65: =D65*35 -> 0 | C65: MIN CHARGE (Coir = ½ / Room = 1 / Flight stairs= 2) | E65: 60 | F65: 0
A66: =D66*10 -> 0 | C66: LABOUR MOVE FURNITURE (Normal = 1 / Heavy = 2) | E66: 18 | F66: 0
A67: =D67*0.75 -> 0 | C67: STICK SMOOTHEDGE | D67: =D34 -> 0 | E67: 1.5 | F67: 0
A68: =D68*3 -> 0 | C68: SEAMING (Enter lin mtrs) | E68: 5 | F68: 0
A69: =D69*4 -> 0 | C69: SEAM DOORWAYS (Enter No. of doorways) | E69: 7 | F69: 0
A70: =D70*10 -> 0 | C70: FIT DOORMAT (As part of larger job) | E70: 17.5 | F70: 0
A71: =D71*15 -> 0 | C71: PORTERAGE (1 Unit = 1 hour labour) | E71: 27.5 | F71: 0
A72: =D72*35 -> 70 | C72: STAIR PREMIUM STANDARD (15 Strs/ 3 winders & 1 B/N) | D72: 2 | E72: 60 | F72: 120
A73: =D73*3.5 -> 0 | C73: WINDER BONUS (Over 3 winders / per winder) | E73: 6 | F73: 0
A74: =D74*10 -> 0 | C74: RUNNERS CUT DOWN AT WAREHOUSE (Per job) | E74: 18 | F74: 0 | G74: FITTING
A75: =D75*45 -> 0 | C75: RUNNERS FITTING CHARGE (Per visit / staircase) | E75: 80 | F75: 0 | G75: =SUM(F64:F84) -> 460.5
A76: =D76*5 -> 0 | C76: RUNNERS TEMPLATE ON SITE (Per item) | E76: 9 | F76: 0
A77: =D77*30 -> 0 | C77: RUNNERS RETURN VISIT (Per visit / Max 3 items) | E77: 55 | F77: 0
A78: =D78*3 -> 0 | C78: FIT STAIRRODS (Each) | E78: 5 | F78: 0
A79: =F79/1.75 -> 0 | C79: ADAPTION / REMEDIAL WORK (Enter cost x 1.75) | E79: 0 | F79: 0
A80: =D80*15 -> 0 | C80: DELIVERY CHARGE (Per visit) | E80: 25 | F80: 0
A81: =F81/1.75 -> 12 | C81: PARKING (Enter No.of hours & Hourly Rate x 1.75) | D81: 6 | E81: 3.5 | F81: 21
A82: =D82*10 -> 0 | C82: CONGESTION CHARGE (Per day) | E82: 17.5 | F82: 0
A83: =F83/1.75 -> 0 | C83: LABOUR ADDITIONAL (Enter cost x 1.75) | E83: 0 | F83: 0
A84: =F84/1.75 -> 0 | C84: LABOUR ADDITIONAL (Enter cost x 1.75) | E84: 0 | F84: 0
A85: =SUM(A64:A84) -> 224 | C85: FITTING MONEY (without uplift) | E85: SUB TOTAL | F85: =SUM(G21:G47:G75) -> 3845.25 | G85: `
C86: DISCOUNT | D86: =SUM(D19:D22) -> 71 | E86: 3.95 | F86: =D86*E86 -> 280.45
E87: TOTAL | F87: =F85-F86 -> 3564.8
A89: =D89*0.75 -> 0 | C89: UPLIFT & DISPOSE (IF Required) | D89: 0 | E89: 2.5 | F89: =D89*E89 -> 0
A90: =D90*5 -> 0 | C90: EASYSHIM (6mm) | E90: 20 | F90: =D90*E90 -> 0
A91: =D91*1.5 -> 0 | C91: EASYSHIM SIDE SHIMS (6mm) | D91: =D90*2 -> 0 | E91: 5 | F91: =D91*E91 -> 0
A92: =A85+A89+A90+A91 -> 224 | C92: TOTAL FITTING MONEY (with uplift & Easyshims) | E92: TOTAL | F92: =F87+F89+F90+F91 -> 3564.8
